[Event "Titled Tuesday Blitz October 5 2021"]
[White "Koellner, Ruben Gideon"]
[Black "Kezin, Roman"]
[WhiteFideId "12993093"]
[BlackFideId "24124621"]
[WhiteElo "2562"]
[BlackElo "2557"]
[Result "0-1"]
[Round "03"]
[TimeControl "180+1"]
[Date "2021.10.05"]
[WhiteClock "0:00:13"]
[BlackClock "0:02:04"]

1. d4 {[%clk 0:03:00]}  d5 {[%clk 0:02:59]} 2. Bf4 {[%clk 0:03:00]}  c5 {[%clk 0:02:59]} 3. e3 {[%clk 0:03:00]}  Nc6 {[%clk 0:03:00]} 4. c3 {[%clk 0:03:00]}  Qb6 {[%clk 0:03:00]} 5. Qb3 {[%clk 0:03:00]}  c4 {[%clk 0:03:00]} 6. Qc2 {[%clk 0:03:00]}  e5 {[%clk 0:03:01]} 7. dxe5 {[%clk 0:02:59]}  Bf5 {[%clk 0:03:01]} 8. Qc1 {[%clk 0:02:59]}  g5 {[%clk 0:03:02]} 9. Bg3 {[%clk 0:02:57]}  h5 {[%clk 0:03:02]} 10. h4 {[%clk 0:02:57]}  g4 {[%clk 0:03:03]} 11. Ne2 {[%clk 0:02:55]}  Bg7 {[%clk 0:03:04]} 12. Nd4 {[%clk 0:02:54]}  Nge7 {[%clk 0:03:04]} 13. Nd2 {[%clk 0:02:44]}  Nxe5 {[%clk 0:03:03]} 14. b3 {[%clk 0:02:37]}  Nd3+ {[%clk 0:03:02]} 15. Bxd3 {[%clk 0:02:36]}  Bxd3 {[%clk 0:03:03]} 16. Qa3 {[%clk 0:02:17]}  Bf6 {[%clk 0:02:47]} 17. Qd6 {[%clk 0:02:08]}  Qxd6 {[%clk 0:02:46]} 18. Bxd6 {[%clk 0:02:09]}  O-O-O {[%clk 0:02:47]} 19. Bg3 {[%clk 0:01:59]}  Nf5 {[%clk 0:02:46]} 20. Rc1 {[%clk 0:01:19]}  Nxg3 {[%clk 0:02:37]} 21. fxg3 {[%clk 0:01:20]}  Be5 {[%clk 0:02:37]} 22. Nf1 {[%clk 0:01:05]}  Rh6 {[%clk 0:02:37]} 23. Ne2 {[%clk 0:00:58]}  Ra6 {[%clk 0:02:36]} 24. Nf4 {[%clk 0:00:21]}  Bxf4 {[%clk 0:02:22]} 25. gxf4 {[%clk 0:00:22]}  Rxa2 {[%clk 0:02:23]} 26. bxc4 {[%clk 0:00:21]}  Re2+ {[%clk 0:02:21]} 27. Kd1 {[%clk 0:00:22]}  dxc4 {[%clk 0:02:22]} 28. Ra1 {[%clk 0:00:17]}  Rxg2 {[%clk 0:02:20]} 29. Ke1 {[%clk 0:00:15]}  Re2+ {[%clk 0:02:11]} 30. Kd1 {[%clk 0:00:14]}  Rc2 {[%clk 0:02:11]} 31. Ng3 {[%clk 0:00:12]}  Be4+ {[%clk 0:02:09]} 32. Ke1 {[%clk 0:00:12]}  Bxh1 {[%clk 0:02:09]} 33. Nxh1 {[%clk 0:00:13]}  Rxc3 {[%clk 0:02:04]} 0-1


[Site "https://www.chess.com"]

[Event "Titled Tuesday Blitz October 5 2021"]
[White "Korchmar, Vasiliy"]
[Black "Chernomordik, Pavel"]
[WhiteFideId "24131750"]
[BlackFideId "2804530"]
[WhiteElo "2370"]
[BlackElo "2281"]
[Result "0-1"]
[Round "03"]
[TimeControl "180+1"]
[Date "2021.10.05"]
[WhiteClock "0:00:01"]
[BlackClock "0:00:14"]

1. e4 {[%clk 0:03:00]}  g6 {[%clk 0:02:59]} 2. h4 {[%clk 0:02:54]}  d5 {[%clk 0:02:58]} 3. h5 {[%clk 0:02:52]}  dxe4 {[%clk 0:02:57]} 4. hxg6 {[%clk 0:02:51]}  fxg6 {[%clk 0:02:57]} 5. Nc3 {[%clk 0:02:52]}  Nf6 {[%clk 0:02:55]} 6. Bc4 {[%clk 0:02:44]}  e5 {[%clk 0:02:51]} 7. Qe2 {[%clk 0:02:38]}  Nc6 {[%clk 0:02:39]} 8. Nxe4 {[%clk 0:02:31]}  Nd4 {[%clk 0:02:39]} 9. Nxf6+ {[%clk 0:02:30]}  Qxf6 {[%clk 0:02:38]} 10. Qd1 {[%clk 0:02:31]}  Bc5 {[%clk 0:02:33]} 11. Nf3 {[%clk 0:02:28]}  Bg4 {[%clk 0:02:27]} 12. Be2 {[%clk 0:02:25]}  Nxe2 {[%clk 0:02:05]} 13. Qxe2 {[%clk 0:02:26]}  O-O-O {[%clk 0:02:04]} 14. d3 {[%clk 0:02:26]}  Rdf8 {[%clk 0:01:56]} 15. Bh6 {[%clk 0:02:25]}  Bxf3 {[%clk 0:01:48]} 16. gxf3 {[%clk 0:02:24]}  Qxf3 {[%clk 0:01:48]} 17. Qxf3 {[%clk 0:01:52]}  Rxf3 {[%clk 0:01:45]} 18. Rh2 {[%clk 0:01:52]}  Re8 {[%clk 0:01:27]} 19. Ke2 {[%clk 0:01:52]}  Rf5 {[%clk 0:01:24]} 20. c3 {[%clk 0:01:46]}  Kd7 {[%clk 0:01:18]} 21. Rg1 {[%clk 0:01:45]}  Bd6 {[%clk 0:01:16]} 22. Be3 {[%clk 0:01:31]}  Re7 {[%clk 0:01:11]} 23. Rh6 {[%clk 0:01:30]}  Rff7 {[%clk 0:01:05]} 24. Rgh1 {[%clk 0:01:29]}  Ke6 {[%clk 0:01:04]} 25. b4 {[%clk 0:01:18]}  a6 {[%clk 0:01:03]} 26. a4 {[%clk 0:01:17]}  b5 {[%clk 0:01:01]} 27. a5 {[%clk 0:01:17]}  Kd5 {[%clk 0:01:00]} 28. f3 {[%clk 0:01:11]}  c5 {[%clk 0:00:59]} 29. Rc1 {[%clk 0:00:41]}  cxb4 {[%clk 0:00:53]} 30. c4+ {[%clk 0:00:42]}  bxc4 {[%clk 0:00:50]} 31. dxc4+ {[%clk 0:00:43]}  Kc6 {[%clk 0:00:50]} 32. c5 {[%clk 0:00:32]}  Bc7 {[%clk 0:00:48]} 33. Rh4 {[%clk 0:00:10]}  Bxa5 {[%clk 0:00:46]} 34. Ra1 {[%clk 0:00:11]}  Kb5 {[%clk 0:00:43]} 35. Re4 {[%clk 0:00:04]}  Bc7 {[%clk 0:00:42]} 36. Bd2 {[%clk 0:00:01]}  a5 {[%clk 0:00:42]} 37. Be3 {[%clk 0:00:01]}  Re6 {[%clk 0:00:34]} 38. Rb1 {[%clk 0:00:01]}  Ref6 {[%clk 0:00:33]} 39. Rb2 {[%clk 0:00:01]}  Rxf3 {[%clk 0:00:32]} 40. Rb1 {[%clk 0:00:02]}  Rh3 {[%clk 0:00:31]} 41. Rc1 {[%clk 0:00:02]}  Kc6 {[%clk 0:00:29]} 42. Kd3 {[%clk 0:00:02]}  Rff3 {[%clk 0:00:27]} 43. Rc2 {[%clk 0:00:01]}  h6 {[%clk 0:00:22]} 44. Rc1 {[%clk 0:00:01]}  g5 {[%clk 0:00:22]} 45. Rc2 {[%clk 0:00:01]}  h5 {[%clk 0:00:21]} 46. Ke2 {[%clk 0:00:02]}  Rfg3 {[%clk 0:00:20]} 47. Kd3 {[%clk 0:00:02]}  g4 {[%clk 0:00:19]} 48. Rf2 {[%clk 0:00:02]}  Rf3 {[%clk 0:00:19]} 49. Rg2 {[%clk 0:00:03]}  g3 {[%clk 0:00:18]} 50. Re2 {[%clk 0:00:02]}  Kd5 {[%clk 0:00:15]} 51. Re1 {[%clk 0:00:01]}  g2 {[%clk 0:00:14]} 0-1


[Site "https://www.chess.com"]

[Event "Titled Tuesday Blitz October 5 2021"]
[White "Kotepalli, Sai Nirupama"]
[Black "Mikhalevski, Victor"]
[WhiteFideId "5039444"]
[BlackFideId "2801914"]
[WhiteElo "2440"]
[BlackElo "2577"]
[Result "0-1"]
[Round "03"]
[TimeControl "180+1"]
[Date "2021.10.05"]
[WhiteClock "0:00:01"]
[BlackClock "0:00:06"]

1. e4 {[%clk 0:03:00]}  c5 {[%clk 0:02:58]} 2. Nf3 {[%clk 0:02:59]}  d6 {[%clk 0:02:58]} 3. d3 {[%clk 0:02:59]}  g6 {[%clk 0:02:56]} 4. g3 {[%clk 0:02:59]}  Bg7 {[%clk 0:02:56]} 5. Bg2 {[%clk 0:02:59]}  Nc6 {[%clk 0:02:56]} 6. O-O {[%clk 0:02:59]}  e6 {[%clk 0:02:53]} 7. c3 {[%clk 0:02:59]}  Nge7 {[%clk 0:02:52]} 8. Be3 {[%clk 0:02:58]}  O-O {[%clk 0:02:46]} 9. Na3 {[%clk 0:02:56]}  b6 {[%clk 0:02:41]} 10. Qd2 {[%clk 0:02:56]}  Ba6 {[%clk 0:02:40]} 11. Rfe1 {[%clk 0:02:51]}  Ne5 {[%clk 0:02:38]} 12. Nxe5 {[%clk 0:02:50]}  dxe5 {[%clk 0:02:38]} 13. Rad1 {[%clk 0:02:49]}  Nc6 {[%clk 0:02:37]} 14. Nc2 {[%clk 0:02:47]}  Qc7 {[%clk 0:02:32]} 15. Bh6 {[%clk 0:02:38]}  Rad8 {[%clk 0:02:31]} 16. Bxg7 {[%clk 0:02:37]}  Kxg7 {[%clk 0:02:28]} 17. Qe3 {[%clk 0:02:37]}  Na5 {[%clk 0:02:13]} 18. Rd2 {[%clk 0:02:24]}  Rd7 {[%clk 0:02:11]} 19. Red1 {[%clk 0:02:21]}  Rfd8 {[%clk 0:02:09]} 20. h4 {[%clk 0:02:13]}  h6 {[%clk 0:02:05]} 21. b3 {[%clk 0:02:10]}  Nc6 {[%clk 0:01:47]} 22. g4 {[%clk 0:02:06]}  Rd6 {[%clk 0:01:38]} 23. g5 {[%clk 0:02:00]}  hxg5 {[%clk 0:01:36]} 24. hxg5 {[%clk 0:02:01]}  Qe7 {[%clk 0:01:35]} 25. Ne1 {[%clk 0:01:51]}  Rh8 {[%clk 0:01:12]} 26. Qg3 {[%clk 0:01:44]}  Qc7 {[%clk 0:01:04]} 27. Nf3 {[%clk 0:01:41]}  Rd7 {[%clk 0:01:03]} 28. Nh2 {[%clk 0:01:32]}  Qd8 {[%clk 0:00:58]} 29. Nf3 {[%clk 0:01:30]}  Qc7 {[%clk 0:00:48]} 30. Nh2 {[%clk 0:01:29]}  Rhd8 {[%clk 0:00:38]} 31. Ng4 {[%clk 0:00:57]}  c4 {[%clk 0:00:38]} 32. bxc4 {[%clk 0:00:56]}  Bxc4 {[%clk 0:00:36]} 33. Qf3 {[%clk 0:00:47]}  Ba6 {[%clk 0:00:28]} 34. Qf6+ {[%clk 0:00:43]}  Kf8 {[%clk 0:00:24]} 35. Qh8+ {[%clk 0:00:39]}  Ke7 {[%clk 0:00:22]} 36. Qf6+ {[%clk 0:00:37]}  Ke8 {[%clk 0:00:21]} 37. Qf3 {[%clk 0:00:35]}  Rd6 {[%clk 0:00:18]} 38. Qg3 {[%clk 0:00:25]}  Rc8 {[%clk 0:00:12]} 39. Nxe5 {[%clk 0:00:21]}  Rdd8 {[%clk 0:00:10]} 40. Nxc6 {[%clk 0:00:19]}  Qxg3 {[%clk 0:00:09]} 41. fxg3 {[%clk 0:00:19]}  Rxc6 {[%clk 0:00:10]} 42. c4 {[%clk 0:00:19]}  Rd4 {[%clk 0:00:10]} 43. Bf1 {[%clk 0:00:17]}  Rc5 {[%clk 0:00:10]} 44. Kf2 {[%clk 0:00:16]}  Rxg5 {[%clk 0:00:10]} 45. Ke3 {[%clk 0:00:16]}  e5 {[%clk 0:00:11]} 46. Kf2 {[%clk 0:00:16]}  f5 {[%clk 0:00:11]} 47. exf5 {[%clk 0:00:15]}  gxf5 {[%clk 0:00:11]} 48. Re2 {[%clk 0:00:15]}  e4 {[%clk 0:00:11]} 49. Re3 {[%clk 0:00:15]}  Kf7 {[%clk 0:00:10]} 50. Rde1 {[%clk 0:00:13]}  Bb7 {[%clk 0:00:09]} 51. dxe4 {[%clk 0:00:13]}  Bxe4 {[%clk 0:00:09]} 52. Bg2 {[%clk 0:00:13]}  Rd2+ {[%clk 0:00:09]} 53. R1e2 {[%clk 0:00:13]}  Rxe2+ {[%clk 0:00:09]} 54. Rxe2 {[%clk 0:00:14]}  Bxg2 {[%clk 0:00:08]} 55. Kxg2 {[%clk 0:00:14]}  Rg4 {[%clk 0:00:09]} 56. Rf2 {[%clk 0:00:13]}  Ke6 {[%clk 0:00:09]} 57. Rc2 {[%clk 0:00:12]}  Kd6 {[%clk 0:00:08]} 58. Kf3 {[%clk 0:00:12]}  Kc5 {[%clk 0:00:09]} 59. Rd2 {[%clk 0:00:12]}  Rxc4 {[%clk 0:00:08]} 60. Rd7 {[%clk 0:00:11]}  Ra4 {[%clk 0:00:07]} 61. Rd2 {[%clk 0:00:11]}  b5 {[%clk 0:00:06]} 62. Rc2+ {[%clk 0:00:09]}  Rc4 {[%clk 0:00:06]} 63. Re2 {[%clk 0:00:09]}  Kb4 {[%clk 0:00:04]} 64. Re5 {[%clk 0:00:08]}  Rc2 {[%clk 0:00:04]} 65. a3+ {[%clk 0:00:07]}  Ka4 {[%clk 0:00:03]} 66. Rxf5 {[%clk 0:00:07]}  Rc3+ {[%clk 0:00:03]} 67. Kf4 {[%clk 0:00:07]}  Rxa3 {[%clk 0:00:04]} 68. g4 {[%clk 0:00:07]}  Ra1 {[%clk 0:00:05]} 69. g5 {[%clk 0:00:06]}  Rf1+ {[%clk 0:00:05]} 70. Kg4 {[%clk 0:00:06]}  Rxf5 {[%clk 0:00:05]} 71. Kxf5 {[%clk 0:00:07]}  b4 {[%clk 0:00:06]} 72. g6 {[%clk 0:00:07]}  b3 {[%clk 0:00:06]} 73. g7 {[%clk 0:00:08]}  b2 {[%clk 0:00:07]} 74. g8=Q {[%clk 0:00:09]}  b1=Q+ {[%clk 0:00:08]} 75. Ke5 {[%clk 0:00:09]}  Qb2+ {[%clk 0:00:08]} 76. Ke4 {[%clk 0:00:08]}  Qb4+ {[%clk 0:00:07]} 77. Ke5 {[%clk 0:00:08]}  Qc3+ {[%clk 0:00:07]} 78. Ke4 {[%clk 0:00:07]}  a5 {[%clk 0:00:07]} 79. Qa2+ {[%clk 0:00:06]}  Kb4 {[%clk 0:00:07]} 80. Qb1+ {[%clk 0:00:04]}  Ka3 {[%clk 0:00:07]} 81. Kf5 {[%clk 0:00:01]}  a4 {[%clk 0:00:06]} 0-1


[Site "https://www.chess.com"]

[Event "Titled Tuesday Blitz October 5 2021"]
[White "Krysa, Leandro"]
[Black "Indjic, Aleksandar"]
[WhiteFideId "116807"]
[BlackFideId "911925"]
[WhiteElo "2490"]
[BlackElo "2643"]
[Result "0-1"]
[Round "03"]
[TimeControl "180+1"]
[Date "2021.10.05"]
[WhiteClock "0:00:02"]
[BlackClock "0:01:05"]

1. e4 {[%clk 0:03:00]}  e5 {[%clk 0:02:54]} 2. Nf3 {[%clk 0:03:00]}  Nc6 {[%clk 0:02:54]} 3. Bb5 {[%clk 0:03:01]}  a6 {[%clk 0:02:53]} 4. Ba4 {[%clk 0:03:01]}  Nf6 {[%clk 0:02:53]} 5. d3 {[%clk 0:03:00]}  d6 {[%clk 0:02:51]} 6. c3 {[%clk 0:03:00]}  g6 {[%clk 0:02:51]} 7. O-O {[%clk 0:03:00]}  Bg7 {[%clk 0:02:52]} 8. h3 {[%clk 0:02:56]}  O-O {[%clk 0:02:52]} 9. Re1 {[%clk 0:02:56]}  b5 {[%clk 0:02:50]} 10. Bc2 {[%clk 0:02:54]}  h6 {[%clk 0:02:49]} 11. a4 {[%clk 0:02:51]}  Bb7 {[%clk 0:02:47]} 12. Nbd2 {[%clk 0:02:49]}  b4 {[%clk 0:02:33]} 13. a5 {[%clk 0:02:46]}  Rb8 {[%clk 0:02:32]} 14. Nc4 {[%clk 0:02:42]}  Nh5 {[%clk 0:02:31]} 15. Be3 {[%clk 0:02:29]}  Re8 {[%clk 0:02:28]} 16. Qd2 {[%clk 0:02:23]}  Kh7 {[%clk 0:02:26]} 17. d4 {[%clk 0:02:18]}  bxc3 {[%clk 0:02:03]} 18. bxc3 {[%clk 0:02:18]}  Nf6 {[%clk 0:02:00]} 19. dxe5 {[%clk 0:01:56]}  Nxe5 {[%clk 0:02:00]} 20. Ncxe5 {[%clk 0:01:42]}  dxe5 {[%clk 0:01:59]} 21. Qxd8 {[%clk 0:01:42]}  Rbxd8 {[%clk 0:01:59]} 22. Nd2 {[%clk 0:01:41]}  Bc6 {[%clk 0:01:57]} 23. Rab1 {[%clk 0:01:34]}  Bf8 {[%clk 0:01:57]} 24. f3 {[%clk 0:01:28]}  Nh5 {[%clk 0:01:55]} 25. Nb3 {[%clk 0:01:12]}  Nf4 {[%clk 0:01:53]} 26. Rbd1 {[%clk 0:00:45]}  Ne6 {[%clk 0:01:51]} 27. Bd3 {[%clk 0:00:42]}  Bb5 {[%clk 0:01:48]} 28. Bxb5 {[%clk 0:00:41]}  axb5 {[%clk 0:01:49]} 29. a6 {[%clk 0:00:39]}  Ra8 {[%clk 0:01:48]} 30. Ra1 {[%clk 0:00:37]}  Red8 {[%clk 0:01:39]} 31. Ra5 {[%clk 0:00:33]}  Rd3 {[%clk 0:01:37]} 32. Rxb5 {[%clk 0:00:10]}  Rxa6 {[%clk 0:01:35]} 33. Rxe5 {[%clk 0:00:10]}  Rxc3 {[%clk 0:01:35]} 34. Nd2 {[%clk 0:00:06]}  Ra2 {[%clk 0:01:33]} 35. Nf1 {[%clk 0:00:06]}  Rcc2 {[%clk 0:01:32]} 36. g3 {[%clk 0:00:04]}  Bd6 {[%clk 0:01:20]} 37. Rb5 {[%clk 0:00:02]}  Rg2+ {[%clk 0:01:18]} 38. Kh1 {[%clk 0:00:03]}  Bxg3 {[%clk 0:01:18]} 39. Rd1 {[%clk 0:00:03]}  Bf4 {[%clk 0:01:15]} 40. Bg1 {[%clk 0:00:02]}  Rgc2 {[%clk 0:01:06]} 41. Rd7 {[%clk 0:00:02]}  Kg7 {[%clk 0:01:05]} 0-1


[Site "https://www.chess.com"]

[Event "Titled Tuesday Blitz October 5 2021"]
[White "Kuegel, Tobias"]
[Black "Cunha, Lucas Aguiar"]
[WhiteFideId "4636295"]
[BlackFideId "2125404"]
[WhiteElo "2438"]
[BlackElo "2361"]
[Result "0-1"]
[Round "03"]
[TimeControl "180+1"]
[Date "2021.10.05"]
[WhiteClock "0:00:02"]
[BlackClock "0:00:14"]

1. Nf3 {[%clk 0:03:00]}  d5 {[%clk 0:02:59]} 2. b3 {[%clk 0:03:00]}  c5 {[%clk 0:02:59]} 3. Bb2 {[%clk 0:03:00]}  Nc6 {[%clk 0:02:59]} 4. e3 {[%clk 0:02:58]}  a6 {[%clk 0:02:59]} 5. Be2 {[%clk 0:02:56]}  Nf6 {[%clk 0:02:58]} 6. O-O {[%clk 0:02:56]}  Bg4 {[%clk 0:02:59]} 7. d4 {[%clk 0:02:53]}  e6 {[%clk 0:02:58]} 8. Ne5 {[%clk 0:02:41]}  Bf5 {[%clk 0:02:21]} 9. Nd2 {[%clk 0:02:32]}  cxd4 {[%clk 0:02:11]} 10. exd4 {[%clk 0:02:27]}  Rc8 {[%clk 0:02:11]} 11. c3 {[%clk 0:02:17]}  Nxe5 {[%clk 0:01:57]} 12. dxe5 {[%clk 0:02:16]}  Nd7 {[%clk 0:01:58]} 13. f4 {[%clk 0:02:06]}  Qa5 {[%clk 0:01:43]} 14. g4 {[%clk 0:01:47]}  Be4 {[%clk 0:01:42]} 15. Nxe4 {[%clk 0:01:46]}  dxe4 {[%clk 0:01:43]} 16. Kh1 {[%clk 0:01:23]}  Be7 {[%clk 0:01:08]} 17. Qd4 {[%clk 0:01:17]}  Qc7 {[%clk 0:00:55]} 18. Qxe4 {[%clk 0:01:09]}  Nc5 {[%clk 0:00:55]} 19. Qg2 {[%clk 0:01:04]}  O-O {[%clk 0:00:53]} 20. Rad1 {[%clk 0:01:03]}  b5 {[%clk 0:00:51]} 21. c4 {[%clk 0:00:41]}  b4 {[%clk 0:00:49]} 22. Bf3 {[%clk 0:00:40]}  a5 {[%clk 0:00:46]} 23. Qc2 {[%clk 0:00:25]}  a4 {[%clk 0:00:41]} 24. Rd2 {[%clk 0:00:24]}  Rfd8 {[%clk 0:00:36]} 25. Rfd1 {[%clk 0:00:24]}  Rxd2 {[%clk 0:00:36]} 26. Rxd2 {[%clk 0:00:25]}  axb3 {[%clk 0:00:35]} 27. axb3 {[%clk 0:00:25]}  g5 {[%clk 0:00:27]} 28. Be4 {[%clk 0:00:21]}  gxf4 {[%clk 0:00:24]} 29. Bxh7+ {[%clk 0:00:20]}  Kg7 {[%clk 0:00:25]} 30. Bf5 {[%clk 0:00:13]}  Qb7+ {[%clk 0:00:19]} 31. Kg1 {[%clk 0:00:10]}  exf5 {[%clk 0:00:17]} 32. gxf5 {[%clk 0:00:10]}  Bg5 {[%clk 0:00:16]} 33. Rg2 {[%clk 0:00:09]}  Kh6 {[%clk 0:00:15]} 34. e6 {[%clk 0:00:05]}  Qe4 {[%clk 0:00:15]} 35. Qf2 {[%clk 0:00:04]}  f3 {[%clk 0:00:14]} 36. Rg3 {[%clk 0:00:04]}  Be3 {[%clk 0:00:14]} 37. Rh3+ {[%clk 0:00:04]}  Kg5 {[%clk 0:00:13]} 38. Rg3+ {[%clk 0:00:04]}  Kxf5 {[%clk 0:00:14]} 39. Rxf3+ {[%clk 0:00:03]}  Kg4 {[%clk 0:00:14]} 40. Rg3+ {[%clk 0:00:03]}  Kh5 {[%clk 0:00:14]} 41. Rh3+ {[%clk 0:00:03]}  Kg6 {[%clk 0:00:14]} 42. Rg3+ {[%clk 0:00:03]}  Bg5 {[%clk 0:00:15]} 43. Rxg5+ {[%clk 0:00:03]}  Kxg5 {[%clk 0:00:15]} 44. Qf6+ {[%clk 0:00:04]}  Kg4 {[%clk 0:00:15]} 45. Qg7+ {[%clk 0:00:03]}  Qg6 {[%clk 0:00:14]} 46. Qd4+ {[%clk 0:00:04]}  Kh5+ {[%clk 0:00:14]} 47. Kf2 {[%clk 0:00:04]}  Nd3+ {[%clk 0:00:14]} 48. Ke3 {[%clk 0:00:04]}  Nxb2 {[%clk 0:00:14]} 49. Qxb2 {[%clk 0:00:04]}  Qg5+ {[%clk 0:00:14]} 50. Kf2 {[%clk 0:00:03]}  Qf4+ {[%clk 0:00:14]} 51. Kg2 {[%clk 0:00:03]}  Rg8+ {[%clk 0:00:14]} 52. Kh1 {[%clk 0:00:02]}  Qf1# {[%clk 0:00:14]} 0-1


[Site "https://www.chess.com"]

[Event "Titled Tuesday Blitz October 5 2021"]
[White "Le, Tuan Minh"]
[Black "Atabayev, Saparmyrat"]
[WhiteFideId "12401153"]
[BlackFideId "14000571"]
[WhiteElo "2450"]
[BlackElo "2483"]
[Result "1-0"]
[Round "03"]
[TimeControl "180+1"]
[Date "2021.10.05"]
[WhiteClock "0:01:02"]
[BlackClock "0:00:17"]

1. d4 {[%clk 0:03:00]}  Nf6 {[%clk 0:02:57]} 2. Bf4 {[%clk 0:02:56]}  d5 {[%clk 0:02:46]} 3. e3 {[%clk 0:02:57]}  c5 {[%clk 0:02:46]} 4. c3 {[%clk 0:02:56]}  Nc6 {[%clk 0:02:47]} 5. Nd2 {[%clk 0:02:55]}  Qb6 {[%clk 0:02:45]} 6. Qc2 {[%clk 0:02:53]}  g6 {[%clk 0:02:45]} 7. Ngf3 {[%clk 0:02:53]}  Bf5 {[%clk 0:02:45]} 8. dxc5 {[%clk 0:02:53]}  Qxc5 {[%clk 0:02:41]} 9. Qb3 {[%clk 0:02:53]}  Na5 {[%clk 0:02:34]} 10. Qa4+ {[%clk 0:02:53]}  Nc6 {[%clk 0:02:34]} 11. Be2 {[%clk 0:02:49]}  Bg7 {[%clk 0:02:33]} 12. O-O {[%clk 0:02:48]}  O-O {[%clk 0:02:33]} 13. Rfd1 {[%clk 0:02:47]}  Rfe8 {[%clk 0:02:31]} 14. Rac1 {[%clk 0:02:41]}  e5 {[%clk 0:02:29]} 15. Bg3 {[%clk 0:02:38]}  Qb6 {[%clk 0:02:29]} 16. Nb3 {[%clk 0:02:31]}  Rad8 {[%clk 0:02:26]} 17. Qb5 {[%clk 0:02:29]}  Qxb5 {[%clk 0:02:23]} 18. Bxb5 {[%clk 0:02:30]}  a6 {[%clk 0:02:24]} 19. Bxc6 {[%clk 0:02:29]}  bxc6 {[%clk 0:02:25]} 20. Bxe5 {[%clk 0:02:27]}  Bg4 {[%clk 0:02:21]} 21. Bd4 {[%clk 0:02:23]}  Rb8 {[%clk 0:02:16]} 22. c4 {[%clk 0:02:23]}  Be6 {[%clk 0:01:58]} 23. Nc5 {[%clk 0:02:16]}  dxc4 {[%clk 0:01:53]} 24. Nxe6 {[%clk 0:02:16]}  Rxe6 {[%clk 0:01:54]} 25. Rxc4 {[%clk 0:02:16]}  Nd5 {[%clk 0:01:53]} 26. Bxg7 {[%clk 0:02:08]}  Kxg7 {[%clk 0:01:54]} 27. Nd4 {[%clk 0:02:09]}  Re4 {[%clk 0:01:47]} 28. b3 {[%clk 0:01:58]}  Ne7 {[%clk 0:01:38]} 29. Rdc1 {[%clk 0:01:49]}  Rd8 {[%clk 0:01:31]} 30. Kf1 {[%clk 0:01:45]}  a5 {[%clk 0:00:49]} 31. g3 {[%clk 0:01:28]}  Rd6 {[%clk 0:00:45]} 32. Kg2 {[%clk 0:01:16]}  f5 {[%clk 0:00:41]} 33. Rc5 {[%clk 0:01:09]}  a4 {[%clk 0:00:30]} 34. bxa4 {[%clk 0:01:08]}  Rd7 {[%clk 0:00:25]} 35. a5 {[%clk 0:01:08]}  Ra7 {[%clk 0:00:25]} 36. Rb1 {[%clk 0:01:05]}  h5 {[%clk 0:00:22]} 37. h4 {[%clk 0:01:05]}  Kh6 {[%clk 0:00:19]} 38. Rb6 {[%clk 0:01:03]}  Nd5 {[%clk 0:00:17]} 39. Rbxc6 {[%clk 0:01:01]}  Nxe3+ {[%clk 0:00:16]} 40. fxe3 {[%clk 0:01:01]}  Rxe3 {[%clk 0:00:17]} 41. Nxf5+ {[%clk 0:01:02]} 1-0


[Site "https://www.chess.com"]

[Event "Titled Tuesday Blitz October 5 2021"]
[White "Majdan, Joanna"]
[Black "Boyer, Mahel"]
[WhiteFideId "1121979"]
[BlackFideId "45102422"]
[WhiteElo "2270"]
[BlackElo "2328"]
[Result "0-1"]
[Round "03"]
[TimeControl "180+1"]
[Date "2021.10.05"]
[WhiteClock "0:01:00"]
[BlackClock "0:00:20"]

1. e4 {[%clk 0:03:00]}  Nc6 {[%clk 0:02:58]} 2. Nf3 {[%clk 0:02:57]}  d5 {[%clk 0:02:56]} 3. exd5 {[%clk 0:02:56]}  Qxd5 {[%clk 0:02:56]} 4. Nc3 {[%clk 0:02:56]}  Qh5 {[%clk 0:02:55]} 5. Be2 {[%clk 0:02:53]}  Bg4 {[%clk 0:02:54]} 6. O-O {[%clk 0:02:51]}  O-O-O {[%clk 0:02:53]} 7. b4 {[%clk 0:02:45]}  Nf6 {[%clk 0:02:39]} 8. b5 {[%clk 0:02:37]}  Nd4 {[%clk 0:02:38]} 9. Nxd4 {[%clk 0:02:34]}  Rxd4 {[%clk 0:02:39]} 10. Bxg4+ {[%clk 0:02:23]}  Rxg4 {[%clk 0:02:40]} 11. Qf3 {[%clk 0:02:19]}  Qe5 {[%clk 0:01:58]} 12. d4 {[%clk 0:02:06]}  Qxd4 {[%clk 0:01:35]} 13. Rd1 {[%clk 0:02:05]}  Qc4 {[%clk 0:01:33]} 14. Ba3 {[%clk 0:01:54]}  e6 {[%clk 0:01:28]} 15. Bxf8 {[%clk 0:01:50]}  Rxf8 {[%clk 0:01:29]} 16. a4 {[%clk 0:01:48]}  Rd4 {[%clk 0:00:32]} 17. a5 {[%clk 0:01:39]}  Rfd8 {[%clk 0:00:31]} 18. Rxd4 {[%clk 0:01:38]}  Qxd4 {[%clk 0:00:24]} 19. a6 {[%clk 0:01:39]}  Nd5 {[%clk 0:00:23]} 20. axb7+ {[%clk 0:01:39]}  Kxb7 {[%clk 0:00:23]} 21. Ra3 {[%clk 0:01:11]}  Qf4 {[%clk 0:00:18]} 22. Qxf4 {[%clk 0:01:05]}  Nxf4 {[%clk 0:00:19]} 23. Kf1 {[%clk 0:01:05]}  Rd2 {[%clk 0:00:17]} 24. g3 {[%clk 0:01:03]}  Nh3 {[%clk 0:00:16]} 25. Ne4 {[%clk 0:01:03]}  Rxc2 {[%clk 0:00:16]} 26. Rf3 {[%clk 0:00:58]}  f5 {[%clk 0:00:16]} 27. Kg2 {[%clk 0:00:55]}  fxe4 {[%clk 0:00:15]} 28. Rf7 {[%clk 0:00:55]}  Rxf2+ {[%clk 0:00:12]} 29. Rxf2 {[%clk 0:00:53]}  Nxf2 {[%clk 0:00:13]} 30. Kxf2 {[%clk 0:00:54]}  Kb6 {[%clk 0:00:14]} 31. Ke3 {[%clk 0:00:54]}  Kxb5 {[%clk 0:00:15]} 32. Kxe4 {[%clk 0:00:55]}  a5 {[%clk 0:00:16]} 33. Ke5 {[%clk 0:00:56]}  a4 {[%clk 0:00:17]} 34. Kxe6 {[%clk 0:00:57]}  a3 {[%clk 0:00:17]} 35. g4 {[%clk 0:00:58]}  a2 {[%clk 0:00:18]} 36. h4 {[%clk 0:00:59]}  a1=Q {[%clk 0:00:19]} 37. g5 {[%clk 0:00:59]}  Qd4 {[%clk 0:00:19]} 38. Kf5 {[%clk 0:01:00]}  Qxh4 {[%clk 0:00:20]} 0-1


[Site "https://www.chess.com"]